[Event "*** Titled Tuesday Blitz"]
[Site "Chess.com"]
[Date "2018.04.03"]
[Round "3"]
[White "pedroholly22"]
[Black "guillembaches"]
[Result "1-0"]
[WhiteElo "2228"]
[BlackElo "2245"]
[TimeControl "180+2"]
[EndTime "13:38:48 PDT"]
[Termination "pedroholly22 won on time"]

1. e4 {[%clk 0:03:01.8]} 1... c5 {[%clk 0:03:00.2]} 2. Nf3 {[%clk 0:03:00.6]}
2... d6 {[%clk 0:03:01]} 3. d4 {[%clk 0:03:02.4]} 3... cxd4 {[%clk 0:03:01.8]}
4. Nxd4 {[%clk 0:03:01.7]} 4... Nf6 {[%clk 0:03:02.4]} 5. Nc3 {[%clk 0:03:03]}
5... Nc6 {[%clk 0:03:02.4]} 6. Bg5 {[%clk 0:02:52.3]} 6... e6 {[%clk 0:03:02.5]}
7. f4 {[%clk 0:02:50.3]} 7... h6 {[%clk 0:03:00.6]} 8. Bh4 {[%clk 0:02:39]} 8...
Be7 {[%clk 0:02:46.2]} 9. Nxc6 {[%clk 0:02:27]} 9... bxc6 {[%clk 0:02:45.3]} 10.
Bd3 {[%clk 0:02:24.3]} 10... Nd7 {[%clk 0:02:12.5]} 11. Bxe7 {[%clk 0:02:11.4]}
11... Qxe7 {[%clk 0:02:12.3]} 12. O-O {[%clk 0:02:12.3]} 12... O-O {[%clk
0:02:04.8]} 13. Kh1 {[%clk 0:02:14.2]} 13... e5 {[%clk 0:01:57.9]} 14. Qf3
{[%clk 0:02:08.4]} 14... exf4 {[%clk 0:01:53.3]} 15. Qxf4 {[%clk 0:02:08.2]}
15... Ne5 {[%clk 0:01:54]} 16. Rad1 {[%clk 0:02:06.8]} 16... Bg4 {[%clk
0:01:48.8]} 17. Rd2 {[%clk 0:02:03.9]} 17... Qg5 {[%clk 0:01:47.5]} 18. Qf2
{[%clk 0:01:57]} 18... Be6 {[%clk 0:01:39.5]} 19. Re2 {[%clk 0:01:51.7]} 19...
Bg4 {[%clk 0:01:31.5]} 20. Ree1 {[%clk 0:01:46.1]} 20... Be6 {[%clk 0:01:30.8]}
21. b3 {[%clk 0:01:41.3]} 21... h5 {[%clk 0:01:27.7]} 22. Ne2 {[%clk 0:01:39.5]}
22... h4 {[%clk 0:01:24.4]} 23. Nd4 {[%clk 0:01:38.4]} 23... h3 {[%clk
0:01:09.5]} 24. gxh3 {[%clk 0:01:33.7]} 24... Bxh3 {[%clk 0:01:06]} 25. Rg1
{[%clk 0:01:32]} 25... Qh6 {[%clk 0:00:56.7]} 26. Rg3 {[%clk 0:01:27.4]} 26...
g6 {[%clk 0:00:53.6]} 27. Nf5 {[%clk 0:01:21.2]} 27... Bxf5 {[%clk 0:00:51.7]}
28. exf5 {[%clk 0:01:20.6]} 28... g5 {[%clk 0:00:41.3]} 29. f6 {[%clk
0:01:15.8]} 29... Kh8 {[%clk 0:00:33.5]} 30. Qg2 {[%clk 0:01:10.5]} 30... g4
{[%clk 0:00:18.8]} 31. Rxe5 {[%clk 0:01:04.1]} 31... dxe5 {[%clk 0:00:19.4]} 32.
Rxg4 {[%clk 0:01:05.4]} 32... Rg8 {[%clk 0:00:19.6]} 33. h3 {[%clk 0:01:01.8]}
33... Rxg4 {[%clk 0:00:17.7]} 34. Qxg4 {[%clk 0:01:02.4]} 34... Rg8 {[%clk
0:00:18.2]} 35. Qf5 {[%clk 0:01:03]} 35... Qc1+ {[%clk 0:00:18.9]} 36. Bf1
{[%clk 0:01:00.7]} 36... Qh6 {[%clk 0:00:13.2]} 37. a4 {[%clk 0:00:58.4]} 37...
Qg6 {[%clk 0:00:13.9]} 38. Qf2 {[%clk 0:00:56.3]} 38... Qg3 {[%clk 0:00:14.2]}
39. Qxg3 {[%clk 0:00:54.7]} 39... Rxg3 {[%clk 0:00:14.5]} 40. Bg2 {[%clk
0:00:55.6]} 40... Rc3 {[%clk 0:00:14.7]} 41. Be4 {[%clk 0:00:57]} 41... Kg8
{[%clk 0:00:14.1]} 42. Kg2 {[%clk 0:00:56.6]} 42... c5 {[%clk 0:00:15.1]} 43. h4
{[%clk 0:00:55.5]} 43... Re3 {[%clk 0:00:16.1]} 44. Bf5 {[%clk 0:00:55.6]} 44...
Re2+ {[%clk 0:00:15.1]} 45. Kf3 {[%clk 0:00:55.4]} 45... Rh2 {[%clk 0:00:15.8]}
46. Kg3 {[%clk 0:00:55.4]} 46... Rh1 {[%clk 0:00:14.9]} 47. Be4 {[%clk
0:00:53.7]} 47... Rf1 {[%clk 0:00:15.1]} 48. Bf3 {[%clk 0:00:52.5]} 48... e4
{[%clk 0:00:15.6]} 49. Bxe4 {[%clk 0:00:53.3]} 49... Rxf6 {[%clk 0:00:16.6]} 50.
Kg4 {[%clk 0:00:53.9]} 50... Kg7 {[%clk 0:00:17.5]} 51. Kg5 {[%clk 0:00:53.7]}
51... a5 {[%clk 0:00:17.9]} 52. Bd3 {[%clk 0:00:55]} 52... Rd6 {[%clk
0:00:18.2]} 53. Kg4 {[%clk 0:00:56.4]} 53... Rd4+ {[%clk 0:00:18.4]} 54. Kg5
{[%clk 0:00:57.1]} 54... f6+ {[%clk 0:00:19.4]} 55. Kh5 {[%clk 0:00:58.1]} 55...
Rf4 {[%clk 0:00:20.3]} 56. Be2 {[%clk 0:00:56.6]} 56... Rf2 {[%clk 0:00:21]} 57.
Bd3 {[%clk 0:00:57.6]} 57... f5 {[%clk 0:00:22]} 58. Kg5 {[%clk 0:00:58.7]}
58... f4 {[%clk 0:00:22.9]} 59. Kg4 {[%clk 0:00:59.9]} 59... f3 {[%clk
0:00:23.7]} 60. Kg3 {[%clk 0:01:01]} 60... Rd2 {[%clk 0:00:19.6]} 61. Kxf3
{[%clk 0:01:02]} 61... Kf6 {[%clk 0:00:20.6]} 62. Ke4 {[%clk 0:01:02.5]} 62...
Rh2 {[%clk 0:00:21.2]} 63. Kd5 {[%clk 0:01:03.2]} 63... Rxh4 {[%clk 0:00:21.4]}
64. Kxc5 {[%clk 0:01:04.4]} 64... Rh5+ {[%clk 0:00:21.1]} 65. Kb6 {[%clk
0:01:05.2]} 65... Ke6 {[%clk 0:00:22.1]} 66. Bb5 {[%clk 0:01:02.1]} 66... Kd5
{[%clk 0:00:22.8]} 67. Kxa5 {[%clk 0:00:58.8]} 67... Kc5 {[%clk 0:00:23.9]} 68.
b4+ {[%clk 0:00:57.8]} 68... Kd4 {[%clk 0:00:25]} 69. c4 {[%clk 0:00:58.8]}
69... Rh6 {[%clk 0:00:23.8]} 70. c5 {[%clk 0:00:59.7]} 70... Kc3 {[%clk
0:00:21.4]} 71. Ba6 {[%clk 0:00:59.6]} 71... Rh4 {[%clk 0:00:20.9]} 72. b5
{[%clk 0:01:00.2]} 72... Kb3 {[%clk 0:00:19.7]} 73. c6 {[%clk 0:01:01.5]} 73...
Rxa4+ {[%clk 0:00:19.9]} 74. Kb6 {[%clk 0:01:03]} 74... Rc4 {[%clk 0:00:17.4]}
75. c7 {[%clk 0:01:04.3]} 75... Kb4 {[%clk 0:00:18.3]} 76. c8=Q {[%clk
0:01:03.8]} 1-0

[Event "*** Titled Tuesday Blitz"]
[Site "Chess.com"]
[Date "2018.04.03"]
[Round "3"]
[White "ckgchess"]
[Black "PchelkinVK"]
[Result "0-1"]
[WhiteElo "2513"]
[BlackElo "2382"]
[TimeControl "180+2"]
[EndTime "13:39:01 PDT"]
[Termination "PchelkinVK won on time"]

1. e4 {[%clk 0:03:01.2]} 1... e6 {[%clk 0:02:59.2]} 2. d3 {[%clk 0:02:49.4]}
2... d5 {[%clk 0:03:00.2]} 3. Nd2 {[%clk 0:02:50.9]} 3... Nf6 {[%clk 0:03:01.6]}
4. g3 {[%clk 0:02:52.1]} 4... b6 {[%clk 0:03:02.6]} 5. Bg2 {[%clk 0:02:52.4]}
5... Bb7 {[%clk 0:03:04]} 6. e5 {[%clk 0:02:49.1]} 6... Nfd7 {[%clk 0:03:04.1]}
7. f4 {[%clk 0:02:50.3]} 7... c5 {[%clk 0:02:55.4]} 8. Ngf3 {[%clk 0:02:50.3]}
8... Nc6 {[%clk 0:02:56.3]} 9. O-O {[%clk 0:02:50.5]} 9... h5 {[%clk 0:02:38.7]}
10. h4 {[%clk 0:02:35.1]} 10... Ne7 {[%clk 0:02:38.1]} 11. Kh2 {[%clk
0:02:02.3]} 11... Nf5 {[%clk 0:02:34.7]} 12. Qe1 {[%clk 0:02:03.2]} 12... b5
{[%clk 0:02:14.4]} 13. a4 {[%clk 0:01:49]} 13... a6 {[%clk 0:02:14.8]} 14. Bh3
{[%clk 0:01:23.8]} 14... g6 {[%clk 0:02:11.9]} 15. d4 {[%clk 0:01:16.3]} 15...
Nxd4 {[%clk 0:01:41.3]} 16. Nxd4 {[%clk 0:01:16.6]} 16... cxd4 {[%clk
0:01:42.7]} 17. Nb3 {[%clk 0:01:14]} 17... Nc5 {[%clk 0:01:18]} 18. Nxd4 {[%clk
0:01:08.4]} 18... Nxa4 {[%clk 0:01:17.9]} 19. f5 {[%clk 0:00:21]} 19... gxf5
{[%clk 0:01:09.9]} 20. Bg5 {[%clk 0:00:21.9]} 20... Qb6 {[%clk 0:01:07]} 21. Be3
{[%clk 0:00:20]} 21... Bc5 {[%clk 0:00:56.5]} 22. c3 {[%clk 0:00:21.1]} 22...
Nxb2 {[%clk 0:00:54.4]} 23. Bxf5 {[%clk 0:00:08.8]} 23... exf5 {[%clk
0:00:35.6]} 24. Qf2 {[%clk 0:00:09.8]} 24... Nc4 {[%clk 0:00:25.5]} 25. Qxf5
{[%clk 0:00:10.3]} 25... Nxe3 {[%clk 0:00:17.3]} 26. Qxf7+ {[%clk 0:00:11.3]}
26... Kd8 {[%clk 0:00:18.8]} 27. Rf6 {[%clk 0:00:12.4]} 27... Rf8 {[%clk
0:00:10.6]} 28. Ne6+ {[%clk 0:00:07.9]} 28... Kc8 {[%clk 0:00:11]} 29. Nxf8
{[%clk 0:00:09.1]} 29... Ng4+ {[%clk 0:00:12.5]} 30. Kh3 {[%clk 0:00:05.6]}
30... Nxf6 {[%clk 0:00:14.4]} 31. exf6 {[%clk 0:00:06.4]} 31... Bxf8 {[%clk
0:00:15.8]} 32. Qxf8+ {[%clk 0:00:07.8]} 32... Qd8 {[%clk 0:00:17.7]} 33. Qc5+
{[%clk 0:00:08.4]} 33... Qc7 {[%clk 0:00:19.1]} 34. Qf8+ {[%clk 0:00:09.7]}
34... Qd8 {[%clk 0:00:19]} 35. Qc5+ {[%clk 0:00:10.9]} 35... Kb8 {[%clk
0:00:20.5]} 36. f7 {[%clk 0:00:11.2]} 36... Qd7+ {[%clk 0:00:21.5]} 37. Kg2
{[%clk 0:00:08.9]} 37... Qxf7 {[%clk 0:00:23.4]} 38. Rf1 {[%clk 0:00:10.6]}
38... d4+ {[%clk 0:00:24.7]} 39. Kg1 {[%clk 0:00:12.1]} 39... Qc7 {[%clk
0:00:17]} 40. Rf8+ {[%clk 0:00:12.3]} 40... Bc8 {[%clk 0:00:18.4]} 41. Qxd4
{[%clk 0:00:12.9]} 41... Qxg3+ {[%clk 0:00:18.5]} 42. Kf1 {[%clk 0:00:12.3]}
42... Ra7 {[%clk 0:00:15.4]} 43. Rxc8+ {[%clk 0:00:08.2]} 43... Kxc8 {[%clk
0:00:15.8]} 44. Qxa7 {[%clk 0:00:09.9]} 44... Qd3+ {[%clk 0:00:15.4]} 45. Kg1
{[%clk 0:00:08.9]} 45... Qg3+ {[%clk 0:00:12.9]} 46. Kf1 {[%clk 0:00:09.6]}
46... Qf4+ {[%clk 0:00:07.8]} 47. Kg1 {[%clk 0:00:06.5]} 47... Qg4+ {[%clk
0:00:08.8]} 48. Kf1 {[%clk 0:00:07.6]} 48... Qf5+ {[%clk 0:00:10.3]} 49. Kg1
{[%clk 0:00:07.7]} 49... Qf6 {[%clk 0:00:11.1]} 50. Qa8+ {[%clk 0:00:07.7]}
50... Kc7 {[%clk 0:00:11.1]} 51. Qa7+ {[%clk 0:00:09]} 51... Kd8 {[%clk
0:00:12.1]} 52. Qb8+ {[%clk 0:00:10.1]} 52... Ke7 {[%clk 0:00:13.4]} 53. Qb7+
{[%clk 0:00:08.2]} 53... Kf8 {[%clk 0:00:13.5]} 54. Qa8+ {[%clk 0:00:08.7]}
54... Kg7 {[%clk 0:00:14.3]} 55. Qb7+ {[%clk 0:00:10]} 55... Kh6 {[%clk
0:00:12.7]} 56. Qc8 {[%clk 0:00:10]} 56... a5 {[%clk 0:00:10.8]} 57. Qc7 {[%clk
0:00:07.9]} 57... a4 {[%clk 0:00:08.9]} 58. Qc5 {[%clk 0:00:05.6]} 58... Qxh4
{[%clk 0:00:06.1]} 59. Qxb5 {[%clk 0:00:06.9]} 59... Qg5+ {[%clk 0:00:07.1]} 0-1

[Event "*** Titled Tuesday Blitz"]
[Site "Chess.com"]
[Date "2018.04.03"]
[Round "3"]
[White "SmoothAsAHedgehog"]
[Black "Bigfish1995"]
[Result "1/2-1/2"]
[WhiteElo "2583"]
[BlackElo "2769"]
[TimeControl "180+2"]
[EndTime "13:39:20 PDT"]
[Termination "Game drawn by repetition"]

1. Nf3 {[%clk 0:03:00.7]} 1... Nf6 {[%clk 0:02:59.7]} 2. c4 {[%clk 0:02:59.5]}
2... e6 {[%clk 0:02:59.9]} 3. g3 {[%clk 0:03:00.5]} 3... d5 {[%clk 0:02:56.7]}
4. Bg2 {[%clk 0:03:01.1]} 4... Be7 {[%clk 0:02:55.6]} 5. O-O {[%clk 0:03:01.7]}
5... O-O {[%clk 0:02:55.9]} 6. b3 {[%clk 0:03:02.3]} 6... b6 {[%clk 0:02:42]} 7.
Bb2 {[%clk 0:03:02.7]} 7... Bb7 {[%clk 0:02:42.8]} 8. e3 {[%clk 0:03:04.2]} 8...
c5 {[%clk 0:02:41.1]} 9. Nc3 {[%clk 0:03:03]} 9... dxc4 {[%clk 0:02:31.8]} 10.
bxc4 {[%clk 0:03:03.4]} 10... Ne4 {[%clk 0:02:20.5]} 11. d3 {[%clk 0:02:48]}
11... Nxc3 {[%clk 0:02:20.5]} 12. Bxc3 {[%clk 0:02:48.6]} 12... Bf6 {[%clk
0:02:21]} 13. Qc2 {[%clk 0:02:44.5]} 13... Nc6 {[%clk 0:02:19.7]} 14. Rfd1
{[%clk 0:02:27.1]} 14... Qe7 {[%clk 0:01:41]} 15. a3 {[%clk 0:02:19.9]} 15...
Rfd8 {[%clk 0:01:40]} 16. Rd2 {[%clk 0:02:15.7]} 16... Rd7 {[%clk 0:01:17.8]}
17. Rad1 {[%clk 0:02:15.8]} 17... Rad8 {[%clk 0:01:17.4]} 18. Qb2 {[%clk
0:02:05.8]} 18... Bxc3 {[%clk 0:01:16.8]} 19. Qxc3 {[%clk 0:02:07.7]} 19... e5
{[%clk 0:01:17.7]} 20. Nh4 {[%clk 0:01:58.9]} 20... g6 {[%clk 0:01:14.6]} 21.
Bd5 {[%clk 0:01:58.3]} 21... Rxd5 {[%clk 0:00:23]} 22. cxd5 {[%clk 0:01:58.8]}
22... Rxd5 {[%clk 0:00:24.9]} 23. Qc4 {[%clk 0:01:28.1]} 23... Rd6 {[%clk
0:00:26]} 24. Qg4 {[%clk 0:01:26.8]} 24... Qd8 {[%clk 0:00:24.3]} 25. Qe2 {[%clk
0:01:16.6]} 25... Na5 {[%clk 0:00:23.5]} 26. Nf3 {[%clk 0:01:10.8]} 26... Qf6
{[%clk 0:00:23.6]} 27. e4 {[%clk 0:01:09.6]} 27... Bc8 {[%clk 0:00:25]} 28. Kg2
{[%clk 0:01:08.5]} 28... Bg4 {[%clk 0:00:20.2]} 29. h3 {[%clk 0:01:08.1]} 29...
Bd7 {[%clk 0:00:21.3]} 30. Rb2 {[%clk 0:01:06.2]} 30... Qe6 {[%clk 0:00:22.3]}
31. Ng5 {[%clk 0:01:04.8]} 31... Qe7 {[%clk 0:00:23]} 32. Nf3 {[%clk 0:01:06.2]}
32... Ba4 {[%clk 0:00:23.3]} 33. Rdd2 {[%clk 0:01:05.6]} 33... Nb3 {[%clk
0:00:23.8]} 34. Rdc2 {[%clk 0:01:01.6]} 34... Na5 {[%clk 0:00:24.3]} 35. Rd2
{[%clk 0:01:02.5]} 35... Bd7 {[%clk 0:00:25.1]} 36. Qe3 {[%clk 0:01:03.1]} 36...
f6 {[%clk 0:00:25.7]} 37. g4 {[%clk 0:01:03]} 37... Kg7 {[%clk 0:00:26.6]} 38.
Qe1 {[%clk 0:01:02.2]} 38... Qe6 {[%clk 0:00:26.8]} 39. Qe3 {[%clk 0:01:03.3]}
39... h5 {[%clk 0:00:27]} 40. Nh2 {[%clk 0:00:55.7]} 40... Nb3 {[%clk
0:00:27.3]} 41. gxh5 {[%clk 0:00:39.5]} 41... Nxd2 {[%clk 0:00:27.6]} 42. h6+
{[%clk 0:00:40.2]} 42... Kh7 {[%clk 0:00:28.7]} 43. Rxd2 {[%clk 0:00:41.8]}
43... c4 {[%clk 0:00:20.3]} 44. Ng4 {[%clk 0:00:30.9]} 44... c3 {[%clk
0:00:18.6]} 45. Rc2 {[%clk 0:00:31.7]} 45... Qb3 {[%clk 0:00:18.3]} 46. Qc1
{[%clk 0:00:27]} 46... Rc6 {[%clk 0:00:13.9]} 47. Ne3 {[%clk 0:00:22]} 47... Be6
{[%clk 0:00:14.2]} 48. Nd1 {[%clk 0:00:23.2]} 48... Qb5 {[%clk 0:00:12.2]} 49.
Rxc3 {[%clk 0:00:23]} 49... Rxc3 {[%clk 0:00:13.3]} 50. Qxc3 {[%clk 0:00:24.2]}
50... Kxh6 {[%clk 0:00:12.1]} 51. Ne3 {[%clk 0:00:25.1]} 51... Qd7 {[%clk
0:00:11.4]} 52. h4 {[%clk 0:00:26.4]} 52... Kh5 {[%clk 0:00:12]} 53. Kg3 {[%clk
0:00:27.6]} 53... Qd6 {[%clk 0:00:10.9]} 54. a4 {[%clk 0:00:25.7]} 54... f5
{[%clk 0:00:11.7]} 55. Kg2 {[%clk 0:00:21.9]} 55... f4 {[%clk 0:00:12.8]} 56.
Nc4 {[%clk 0:00:22.7]} 56... Bxc4 {[%clk 0:00:12.8]} 57. Qxc4 {[%clk 0:00:22.9]}
57... Kxh4 {[%clk 0:00:14.1]} 58. Qf7 {[%clk 0:00:17.3]} 58... Kg5 {[%clk
0:00:14.1]} 59. Qe8 {[%clk 0:00:16.8]} 59... a5 {[%clk 0:00:13.9]} 60. Qh8
{[%clk 0:00:16.2]} 60... Qf6 {[%clk 0:00:12.1]} 61. Qh3 {[%clk 0:00:17.1]} 61...
Qe7 {[%clk 0:00:10.9]} 62. Qh8 {[%clk 0:00:14.3]} 62... Qd6 {[%clk 0:00:08.1]}
63. Qe8 {[%clk 0:00:12.8]} 63... Kf6 {[%clk 0:00:08.5]} 64. Qh8+ {[%clk
0:00:10.6]} 64... Ke7 {[%clk 0:00:09.8]} 65. Qg7+ {[%clk 0:00:11.7]} 65... Kd8
{[%clk 0:00:10.7]} 66. Qb7 {[%clk 0:00:10.5]} 66... Qc7 {[%clk 0:00:10.9]} 67.
Qd5+ {[%clk 0:00:11.1]} 67... Ke7 {[%clk 0:00:12.2]} 68. Qg8 {[%clk 0:00:11.6]}
68... Qd6 {[%clk 0:00:13.5]} 69. Qg7+ {[%clk 0:00:12]} 69... Kd8 {[%clk
0:00:14.5]} 70. Qb7 {[%clk 0:00:11.4]} 70... Ke8 {[%clk 0:00:15.2]} 71. Qg7
{[%clk 0:00:10.8]} 71... Qe6 {[%clk 0:00:14.5]} 72. Kh2 {[%clk 0:00:07.5]} 72...
Kd8 {[%clk 0:00:15]} 73. Qb7 {[%clk 0:00:08.1]} 73... Qd6 {[%clk 0:00:14.4]} 74.
Kg2 {[%clk 0:00:06.3]} 1/2-1/2

[Event "*** Titled Tuesday Blitz"]
[Site "Chess.com"]
[Date "2018.04.03"]
[Round "3"]
[White "Al_Shima"]
[Black "Bad4life"]
[Result "1-0"]
[WhiteElo "2276"]
[BlackElo "2387"]
[TimeControl "180+2"]
[EndTime "13:39:51 PDT"]
[Termination "Al_Shima won by resignation"]

1. b3 {[%clk 0:03:01.9]} 1... c5 {[%clk 0:02:58.8]} 2. Bb2 {[%clk 0:03:03]} 2...
d5 {[%clk 0:03:00.1]} 3. e3 {[%clk 0:03:04.3]} 3... a6 {[%clk 0:03:01.4]} 4. f4
{[%clk 0:03:05.4]} 4... Nc6 {[%clk 0:03:02.5]} 5. Nf3 {[%clk 0:03:06.4]} 5...
Nf6 {[%clk 0:03:03.8]} 6. g3 {[%clk 0:03:04.4]} 6... Bg4 {[%clk 0:03:04]} 7. h3
{[%clk 0:03:05.1]} 7... Bf5 {[%clk 0:03:04.7]} 8. g4 {[%clk 0:03:05.2]} 8... Be4
{[%clk 0:03:05.6]} 9. d3 {[%clk 0:03:05.9]} 9... Qa5+ {[%clk 0:03:04.1]} 10.
Nbd2 {[%clk 0:02:50.1]} 10... Bxf3 {[%clk 0:03:02.2]} 11. Qxf3 {[%clk
0:02:51.5]} 11... e6 {[%clk 0:03:02.7]} 12. Bg2 {[%clk 0:02:46.7]} 12... O-O-O
{[%clk 0:02:59.4]} 13. a3 {[%clk 0:02:42.6]} 13... Rd7 {[%clk 0:02:58.7]} 14.
Qe2 {[%clk 0:02:29.4]} 14... h5 {[%clk 0:02:52.8]} 15. g5 {[%clk 0:02:27.8]}
15... Ne8 {[%clk 0:02:54.1]} 16. O-O {[%clk 0:02:27.9]} 16... h4 {[%clk
0:02:53.6]} 17. Nf3 {[%clk 0:02:28.2]} 17... Nd6 {[%clk 0:02:50.1]} 18. e4
{[%clk 0:02:25.7]} 18... d4 {[%clk 0:02:47]} 19. Ne5 {[%clk 0:02:22]} 19... Nxe5
{[%clk 0:02:43.1]} 20. fxe5 {[%clk 0:02:23.9]} 20... Ne8 {[%clk 0:02:40.8]} 21.
g6 {[%clk 0:01:50.4]} 21... fxg6 {[%clk 0:02:38.2]} 22. Qg4 {[%clk 0:01:51]}
22... Nc7 {[%clk 0:02:22.3]} 23. Qxg6 {[%clk 0:01:46.9]} 23... Qd2 {[%clk
0:02:23.3]} 24. Rf2 {[%clk 0:01:45.4]} 24... Qe3 {[%clk 0:02:16.6]} 25. Rf1
{[%clk 0:01:39.2]} 25... Be7 {[%clk 0:02:15.1]} 26. Bc1 {[%clk 0:01:38.5]} 26...
Qg3 {[%clk 0:02:13.7]} 27. Qxg3 {[%clk 0:01:30]} 27... hxg3 {[%clk 0:02:15.6]}
28. Rf7 {[%clk 0:01:29.1]} 28... Ne8 {[%clk 0:02:10.7]} 29. Bf4 {[%clk
0:01:23.4]} 29... Bh4 {[%clk 0:02:09.5]} 30. Bd2 {[%clk 0:01:15.9]} 30... Be7
{[%clk 0:01:48.8]} 31. R1f3 {[%clk 0:01:11.5]} 31... Bh4 {[%clk 0:01:42.8]} 32.
Rxd7 {[%clk 0:01:04.4]} 32... Kxd7 {[%clk 0:01:44.7]} 33. Rf7+ {[%clk
0:01:04.9]} 33... Kc6 {[%clk 0:01:45.8]} 34. Bf3 {[%clk 0:00:57.5]} 34... Nc7
{[%clk 0:01:08.4]} 35. Rxg7 {[%clk 0:00:52.7]} 35... Rf8 {[%clk 0:01:08.8]} 36.
Kg2 {[%clk 0:00:52.8]} 36... b5 {[%clk 0:01:07.8]} 37. Rg4 {[%clk 0:00:46.3]}
37... Rh8 {[%clk 0:01:05.4]} 38. Rg7 {[%clk 0:00:41.6]} 38... Ne8 {[%clk
0:00:59.6]} 39. Rf7 {[%clk 0:00:38.3]} 39... Kb6 {[%clk 0:00:54.3]} 40. Bg4
{[%clk 0:00:38.3]} 40... Nc7 {[%clk 0:00:50.4]} 41. a4 {[%clk 0:00:23.7]} 41...
Rb8 {[%clk 0:00:38]} 42. a5+ {[%clk 0:00:24]} 42... Kc6 {[%clk 0:00:38]} 43. Rh7
{[%clk 0:00:22]} 43... Rf8 {[%clk 0:00:32.1]} 44. Bf3 {[%clk 0:00:21.8]} 44...
Bd8 {[%clk 0:00:27.5]} 45. Kxg3 {[%clk 0:00:22.1]} 45... b4 {[%clk 0:00:23.7]}
46. Kg2 {[%clk 0:00:22]} 46... Ne8 {[%clk 0:00:21.3]} 47. Bg4 {[%clk 0:00:22.6]}
47... Bxa5 {[%clk 0:00:21.9]} 48. Bxe6 {[%clk 0:00:22.8]} 48... Nc7 {[%clk
0:00:22.9]} 49. Bd7+ {[%clk 0:00:22.8]} 49... Kb7 {[%clk 0:00:23.8]} 50. Bf5
{[%clk 0:00:23.5]} 50... Rg8+ {[%clk 0:00:24.7]} 51. Bg4 {[%clk 0:00:23.7]}
51... Kc6 {[%clk 0:00:26]} 52. Rh6+ {[%clk 0:00:24.1]} 52... Kb7 {[%clk
0:00:26.8]} 53. Rh7 {[%clk 0:00:25.3]} 53... Kc6 {[%clk 0:00:27.7]} 54. Bf4
{[%clk 0:00:26.4]} 54... c4 {[%clk 0:00:27]} 55. dxc4 {[%clk 0:00:26.5]} 55...
Rf8 {[%clk 0:00:28.4]} 56. Kg3 {[%clk 0:00:27.3]} 56... Bb6 {[%clk 0:00:28.3]}
57. Be2 {[%clk 0:00:27.6]} 57... a5 {[%clk 0:00:28.6]} 58. Rh6+ {[%clk
0:00:25.7]} 58... Kc5 {[%clk 0:00:26.4]} 59. e6 {[%clk 0:00:25.4]} 59... Ne8
{[%clk 0:00:25.4]} 60. e7 {[%clk 0:00:25.5]} 60... Rg8+ {[%clk 0:00:26.6]} 61.
Bg4 {[%clk 0:00:25.7]} 61... a4 {[%clk 0:00:26.8]} 62. bxa4 {[%clk 0:00:21.6]}
62... b3 {[%clk 0:00:21.4]} 63. cxb3 {[%clk 0:00:22.6]} 63... d3 {[%clk
0:00:22.6]} 64. Kf3 {[%clk 0:00:23.3]} 64... Ba5 {[%clk 0:00:20.3]} 65. Be3+
{[%clk 0:00:21]} 65... Kb4 {[%clk 0:00:21.5]} 66. Bd2+ {[%clk 0:00:22.2]} 66...
Kxb3 {[%clk 0:00:22.1]} 67. Bxa5 {[%clk 0:00:23.3]} 67... Rg7 {[%clk 0:00:21.8]}
68. Bd2 {[%clk 0:00:19.8]} 68... Rf7+ {[%clk 0:00:21.9]} 69. Ke3 {[%clk
0:00:20]} 69... Rxe7 {[%clk 0:00:17.4]} 70. Re6 {[%clk 0:00:20.5]} 70... Rxe6
{[%clk 0:00:07.7]} 71. Bxe6 {[%clk 0:00:22.4]} 71... Kc2 {[%clk 0:00:08.9]} 72.
c5 {[%clk 0:00:21.1]} 72... Nc7 {[%clk 0:00:10]} 73. Ba5 {[%clk 0:00:21.4]}
73... Nxe6 {[%clk 0:00:10.3]} 74. c6 {[%clk 0:00:22]} 74... Nc7 {[%clk
0:00:07.4]} 75. h4 {[%clk 0:00:21.6]} 75... Na6 {[%clk 0:00:08.1]} 76. h5 {[%clk
0:00:21.7]} 76... Nc5 {[%clk 0:00:08.3]} 77. c7 {[%clk 0:00:21.8]} 77... d2
{[%clk 0:00:04.7]} 78. Bxd2 {[%clk 0:00:22.2]} 78... Kd1 {[%clk 0:00:06.1]} 79.
c8=Q {[%clk 0:00:22.6]} 79... Nb3 {[%clk 0:00:06.5]} 80. Qc1+ {[%clk 0:00:22.4]}
80... Nxc1 {[%clk 0:00:07.7]} 81. Bxc1 {[%clk 0:00:23.8]} 1-0